bitfinex/quotes_BTCUSD_20241223
["timestamp","ask_amount","ask_price","bid_price","bid_amount"]
[1734994933469,0.34713095,95265.0,95221.0,0.000171]
[1734994933470,0.0929877,95243.0,95221.0,0.000171]
[1734994933688,0.10398632,95242.0,95221.0,0.000171]
[1734994933899,0.210014,95232.0,95221.0,0.000171]
[1734994934115,0.0929877,95242.0,95221.0,0.000171]
[1734994934325,0.00929877,95241.0,95221.0,0.000171]
[1734994934581,0.00929877,95241.0,95225.0,0.210028]
[1734994935209,0.00929877,95241.0,95221.0,0.000171]
[1734994935210,0.00945564,95241.0,95221.0,0.000171]
[1734994936101,0.00015687,95241.0,95226.0,0.10415732]
[1734994936333,0.00015687,95241.0,95237.0,0.210001]
[1734994936538,0.00015687,95241.0,95237.0,0.420002]
[1734994937164,0.00015687,95241.0,95237.0,0.210001]
[1734994937368,0.00015687,95241.0,95237.0,0.420003]
[1734994937569,0.00015687,95241.0,95237.0,0.210001]
[1734994938819,0.00015687,95241.0,95233.0,0.210009]
[1734994939675,0.00015687,95241.0,95240.0,0.0070123]
[1734994940804,0.00015687,95241.0,95239.0,0.209996]
[1734994941018,0.00015687,95241.0,95240.0,0.0070123]
[1734994941234,0.00015687,95241.0,95239.0,0.2170083]
[1734994941891,0.00015687,95241.0,95239.0,0.209996]
[1734994942112,0.00015687,95241.0,95239.0,0.2170083]
[1734994944596,0.00015687,95241.0,95240.0,0.0758]
[1734994944805,8.7e-07,95241.0,95240.0,0.5115486]
[1734994945016,8.57e-05,95265.0,95264.0,0.0070123]
[1734994945438,0.00014613,95265.0,95264.0,0.0070123]
[1734994945651,0.00014613,95265.0,95260.0,0.0259]
[1734994945864,0.00014613,95265.0,95263.0,0.209945]
[1734994946077,0.00014613,95265.0,95261.0,0.209949]
[1734994946490,0.00014613,95265.0,95257.0,0.2169683]
[1734994946696,0.00014613,95265.0,95262.0,0.209945]
[1734994947662,0.00014613,95265.0,95262.0,0.419891]
[1734994954708,0.00014613,95265.0,95258.0,0.209956]
[1734994954928,0.00014613,95265.0,95240.0,0.15]
[1734994955133,0.00014613,95265.0,95247.0,0.20998]
[1734994955134,0.21779661,95264.0,95247.0,0.20998]
[1734994955363,0.21779661,95264.0,95236.0,0.1]
[1734994955590,0.00785461,95264.0,95251.0,0.209969]
[1734994955809,0.21779861,95264.0,95249.0,0.209975]
[1734994956018,0.02963357,95263.0,95249.0,0.209975]
[1734994956412,0.02963357,95263.0,95249.0,0.41995]
[1734994957048,0.209947,95262.0,95249.0,0.209975]
[1734994957364,0.04575253,95261.0,95249.0,0.209975]
[1734994957804,0.04575253,95261.0,95246.0,0.209982]
[1734994957985,0.02963357,95263.0,95253.0,0.209965]
[1734994958403,0.02963357,95263.0,95247.0,0.20998]
[1734994958404,0.209947,95262.0,95247.0,0.20998]
[1734994959066,0.02963357,95263.0,95245.0,0.209983]
[1734994959272,0.00014613,95265.0,95245.0,0.209983]
[1734994959273,0.06210474,95262.0,95245.0,0.209983]
[1734994959479,0.06210474,95262.0,95203.0,0.000171]
[1734994959480,0.209961,95256.0,95239.0,0.209998]
[1734994959859,0.209961,95256.0,95240.0,0.0419]
[1734994960059,0.20997,95252.0,95240.0,0.0419]
[1734994960273,0.0929877,95258.0,95239.0,0.209998]
[1734994960476,0.05750054,95255.0,95237.0,0.210001]
[1734994960678,0.05750054,95255.0,95241.0,0.0001714]
[1734994960879,0.419929,95254.0,95241.0,0.0001714]
[1734994961052,0.209964,95254.0,95241.0,0.0001714]
[1734994961256,0.06743906,95253.0,95241.0,0.0001714]
[1734994961680,0.06743906,95253.0,95242.0,0.209991]
[1734994962118,0.06743906,95253.0,95241.0,0.0001714]
[1734994962119,0.09323855,95255.0,95241.0,0.0001714]
[1734994962660,0.09323855,95255.0,95242.0,0.209991]
[1734994963070,0.09323855,95255.0,95241.0,0.0001714]
[1734994963277,0.10398632,95256.0,95241.0,0.0001714]
[1734994963478,0.0406927,95255.0,95241.0,0.0001714]
[1734994963686,0.0406927,95255.0,95242.0,0.209991]
[1734994963835,0.0406927,95255.0,95241.0,0.0001714]
[1734994964672,0.209964,95254.0,95241.0,0.0001714]
[1734994965864,0.0406927,95255.0,95242.0,0.209991]
[1734994966129,0.04476277,95254.0,95242.0,0.251891]
[1734994966563,0.04476277,95254.0,95242.0,0.209991]
[1734994967191,0.04476277,95254.0,95241.0,0.0001714]
[1734994967834,0.04476277,95254.0,95242.0,0.209991]
[1734994968033,0.10398632,95256.0,95241.0,0.0001714]
[1734994968238,0.10398632,95256.0,95243.0,0.209989]
[1734994968446,0.209928,95271.0,95241.0,0.0001714]
[1734994968447,0.09323855,95264.0,95241.0,0.0001714]
[1734994968655,0.0311746,95263.0,95241.0,0.0001714]
[1734994968862,0.0311746,95263.0,95255.0,0.209961]
[1734994969271,0.09323855,95264.0,95255.0,0.209961]
[1734994969879,0.00014613,95265.0,95255.0,0.209961]
[1734994971962,0.00014613,95265.0,95250.0,0.209972]
[1734994972211,0.00014613,95265.0,95243.0,0.209988]
[1734994972415,0.00014613,95265.0,95241.0,0.08703265]
[1734994972614,0.03030648,95264.0,95255.0,0.209961]
[1734994973152,0.03030648,95264.0,95251.0,0.209969]
[1734994973902,0.31393132,95263.0,95249.0,0.0259]
[1734994974040,0.31393132,95263.0,95249.0,0.209975]
[1734994974276,0.06473106,95262.0,95249.0,0.209975]
[1734994974650,0.419902,95260.0,95244.0,0.0419]
[1734994974854,0.52388832,95260.0,95245.0,0.209984]
[1734994975266,0.31393732,95260.0,95245.0,0.209984]
[1734994975496,0.0619066,95259.0,95245.0,0.209984]
[1734994978455,0.0619066,95259.0,95248.0,0.209977]
[1734994979096,0.0619066,95259.0,95243.0,0.209989]
[1734994979268,0.06473106,95262.0,95253.0,0.209967]
[1734994979878,0.06473106,95262.0,95248.0,0.209976]
[1734994981520,0.06473106,95262.0,95252.0,0.209967]
[1734994981763,0.03030648,95264.0,95256.0,0.209958]
[1734994981937,0.03030648,95264.0,95243.0,0.0110911]
[1734994982149,0.03030648,95264.0,95243.0,0.209989]
[1734994982359,0.03030648,95264.0,95240.0,0.04275306]
[1734994982503,0.02746975,95263.0,95255.0,0.209962]
[1734994982710,0.09338468,95265.0,95255.0,0.209962]
[1734994983300,0.09338468,95265.0,95251.0,0.209969]
[1734994983706,0.00014613,95265.0,95251.0,0.209969]
[1734994983922,0.209942,95264.0,95251.0,0.209969]
[1734994984496,0.00014613,95265.0,95251.0,0.209969]
[1734994984702,0.07461967,95264.0,95251.0,0.209969]
[1734994985033,0.209945,95263.0,95251.0,0.209969]
[1734994985364,0.07461967,95264.0,95253.0,0.209966]
[1734994985786,0.31393132,95263.0,95249.0,0.209975]
[1734994986166,0.16507526,95263.0,95247.0,0.20998]
[1734994986371,0.209947,95262.0,95247.0,0.20998]
[1734994987146,0.209957,95258.0,95244.0,0.209986]
[1734994987347,0.20997,95252.0,95240.0,0.0001714]
[1734994987645,0.209979,95248.0,95240.0,0.0001714]
[1734994989237,0.209973,95251.0,95240.0,0.0001714]
[1734994989440,0.09323855,95248.0,95240.0,0.0001714]
[1734994989626,0.10398632,95247.0,95240.0,0.0001714]
[1734994989952,0.209982,95246.0,95240.0,0.0001714]
[1734994990175,0.209992,95242.0,95240.0,0.0001714]
[1734994990613,0.02102,95241.0,95240.0,0.0001714]
[1734994990823,0.209992,95242.0,95240.0,0.0001714]
[1734994991028,0.06161987,95241.0,95240.0,0.0001714]
[1734994992070,0.209995,95240.0,95226.0,0.1632674]
[1734994992472,0.210004,95237.0,95226.0,0.1632674]
[1734994992742,0.210004,95237.0,95223.0,0.210032]
[1734994992964,0.209995,95240.0,95221.0,0.210208]
[1734994992965,0.210006,95235.0,95221.0,0.210208]
[1734994993427,0.210015,95232.0,95221.0,0.210208]
[1734994994376,0.2100809,95232.0,95221.0,0.000171]
[1734994995112,6.59e-05,95232.0,95221.0,0.000171]
[1734994995334,0.210029,95225.0,95221.0,0.000171]
[1734994995560,0.03140153,95224.0,95221.0,0.000171]
[1734994996545,0.210033,95223.0,95221.0,0.000171]
[1734994997725,0.10398632,95222.0,95221.0,0.000171]
[1734994998543,0.19697402,95222.0,95221.0,0.000171]
[1734994999640,0.39267402,95222.0,95221.0,0.000171]
[1734994999879,0.43287272,95222.0,95221.0,0.000171]
[1734995000117,0.80402735,95222.0,95221.0,0.000171]
[1734995001085,0.88682735,95222.0,95221.0,0.000171]
[1734995001317,0.88682735,95222.0,95220.0,0.000171]
[1734995001318,0.2659877,95221.0,95220.0,0.000171]
[1734995001549,0.64163089,95221.0,95220.0,0.000171]
[1734995002692,0.98978552,95221.0,95220.0,0.000171]
[1734995004007,1.27406758,95221.0,95220.0,0.000171]
[1734995004164,0.4760467,95211.0,95210.0,0.0001708]
[1734995004379,0.58003302,95211.0,95210.0,0.0001708]
[1734995004607,0.10398632,95211.0,95210.0,0.0001708]
[1734995004808,0.210053,95214.0,95210.0,0.0001708]
[1734995005004,0.10398632,95213.0,95210.0,0.0001708]
[1734995005204,0.03140393,95212.0,95210.0,0.0001708]
[1734995005404,0.10398632,95213.0,95203.0,0.2095898]
[1734995005616,0.10398632,95213.0,95199.0,0.210084]
[1734995005867,0.210057,95212.0,95195.0,0.210093]
[1734995006074,0.16569442,95211.0,95193.0,0.0802]
[1734995006265,0.10398632,95211.0,95184.0,0.042]
[1734995007039,0.210087,95199.0,95182.0,0.210121]
[1734995007258,0.210087,95199.0,95186.0,0.210114]
[1734995007654,0.210079,95202.0,95186.0,0.210114]
[1734995007863,0.210084,95200.0,95186.0,0.210114]
[1734995008360,0.21021024,95200.0,95186.0,0.210114]
[1734995009374,0.00012624,95200.0,95192.0,0.210101]
[1734995010032,0.00012624,95200.0,95188.0,0.210109]
[1734995010208,0.05452645,95199.0,95188.0,0.210109]
[1734995012001,0.210088,95198.0,95186.0,0.0001712]
[1734995012262,0.10398632,95197.0,95181.0,0.0493712]
[1734995012709,0.10398632,95197.0,95187.0,0.210111]
[1734995012917,0.15641458,95197.0,95187.0,0.210111]
[1734995014282,0.10398632,95197.0,95189.0,0.210107]
[1734995015509,0.10398632,95197.0,95185.0,0.210117]
[1734995015810,0.210092,95196.0,95183.0,0.210121]
[1734995016065,0.210092,95196.0,95183.0,0.420242]
[1734995016291,0.05242866,95195.0,95183.0,0.210121]
[1734995016517,0.15641498,95195.0,95177.0,0.01072488]
[1734995016736,0.10398632,95195.0,95168.0,0.000171]
[1734995016944,0.210124,95182.0,95171.0,0.210146]
[1734995017164,0.210116,95186.0,95168.0,0.000171]
[1734995017377,0.0420227,95185.0,95169.0,0.210152]
[1734995017808,0.210097,95194.0,95168.0,0.100171]
[1734995018268,0.01076111,95197.0,95182.0,0.420243]
[1734995018506,0.10398632,95197.0,95170.0,0.1]
[1734995018701,0.01041126,95196.0,95187.0,0.210112]
[1734995019213,0.10398632,95197.0,95187.0,0.210112]
[1734995019652,0.10398632,95197.0,95183.0,0.21012]
[1734995019653,0.210092,95196.0,95183.0,0.21012]
[1734995020267,0.09402,95194.0,95183.0,0.21012]
[1734995020884,0.31408532,95193.0,95181.0,0.210125]
[1734995021081,0.210103,95191.0,95181.0,0.210125]
[1734995021324,0.304123,95191.0,95181.0,0.210125]
[1734995021982,0.09402,95190.0,95181.0,0.210125]
[1734995022185,0.09402,95190.0,95181.0,8.56e-05]
[1734995022791,0.09402,95190.0,95181.0,0.2102106]
[1734995022970,0.07606943,95189.0,95181.0,0.2102106]
[1734995023548,0.07606943,95189.0,95181.0,8.56e-05]
[1734995023999,0.07606943,95189.0,95181.0,0.2102106]
[1734995024436,0.17008943,95189.0,95181.0,0.2102106]
[1734995025411,0.17008943,95189.0,95181.0,8.56e-05]
[1734995025613,0.210123,95182.0,95181.0,8.56e-05]
[1734995025810,0.31410932,95182.0,95181.0,8.56e-05]
[1734995027056,0.31410932,95182.0,95168.0,0.01135104]
[1734995027299,0.210128,95180.0,95168.0,0.01135104]
[1734995027894,0.10398632,95181.0,95169.0,0.210151]
[1734995028110,0.09396132,95178.0,95169.0,0.210151]
[1734995028321,0.09396132,95178.0,95170.0,0.21015]
[1734995028988,0.09396132,95178.0,95168.0,0.01836334]
[1734995029885,0.09396132,95178.0,95169.0,0.210152]
[1734995030111,0.09396132,95176.0,95169.0,0.210152]
[1734995030336,0.05491076,95175.0,95169.0,0.210152]
[1734995031008,0.05491076,95175.0,95168.0,0.000171]
[1734995031302,0.09396132,95172.0,95168.0,0.000171]
[1734995031481,0.30410832,95172.0,95168.0,0.000171]
[1734995032138,0.30410832,95172.0,95158.0,0.22091075]
[1734995032329,0.18804,95169.0,95158.0,0.22091075]
[1734995033165,0.27666471,95172.0,95158.0,0.22091075]
[1734995033166,0.09412742,95161.0,95158.0,0.43108675]
[1734995033582,0.09412742,95161.0,95160.0,0.00069512]
[1734995034654,0.09412742,95161.0,95160.0,0.00770742]
[1734995034889,0.09412742,95161.0,95160.0,0.21169374]
[1734995035151,0.09412742,95161.0,95160.0,0.26079374]
[1734995035393,0.14119114,95165.0,95164.0,0.1777]
[1734995035636,0.14119114,95165.0,95164.0,0.43869862]
[1734995036115,0.18804,95168.0,95167.0,0.0070123]
[1734995036412,0.0001712,95180.0,95179.0,0.31013]
[1734995036627,0.0001712,95180.0,95179.0,0.42112862]
[1734995036870,2e-07,95180.0,95179.0,0.88291362]
[1734995037104,2e-07,95180.0,95179.0,0.76302862]
[1734995037379,0.05723489,95185.0,95184.0,0.4901313]
[1734995037618,0.23505,95218.0,95192.0,0.1]
[1734995037829,0.23505,95218.0,95197.0,0.1070123]
[1734995038043,0.23505,95218.0,95197.0,0.25321341]
[1734995038474,0.23505,95218.0,95197.0,0.27251987]
[1734995038916,0.23505,95218.0,95197.0,0.24141502]
[1734995038917,0.00029195,95198.0,95197.0,0.24141502]
[1734995040243,0.00029195,95198.0,95197.0,0.22210856]
[1734995049316,0.00029195,95198.0,95197.0,0.20210856]
[1734995052565,0.20894837,95217.0,95200.0,0.1]
[1734995052765,0.20894837,95217.0,95200.0,0.10052412]
[1734995052990,0.0942653,95220.0,95200.0,0.10052412]
[1734995053193,0.0634296,95219.0,95205.0,0.21007]
[1734995053409,0.3043043,95221.0,95205.0,0.21007]
[1734995053811,0.3043043,95221.0,95209.0,0.210062]
[1734995054020,0.3043043,95221.0,95214.0,0.210051]
[1734995054021,0.0942653,95221.0,95214.0,0.210051]
[1734995054246,0.0942653,95221.0,95211.0,0.210059]
[1734995054659,0.0942653,95222.0,95211.0,0.210059]
[1734995055276,0.210037,95221.0,95208.0,0.210065]
[1734995055485,0.0844328,95220.0,95201.0,0.210081]
[1734995055691,0.210044,95218.0,95202.0,0.210079]
[1734995055896,0.0942653,95223.0,95203.0,0.210077]
[1734995056129,0.0942653,95223.0,95221.0,0.210037]
[1734995056329,0.0942653,95223.0,95222.0,0.1]
[1734995056652,0.0942653,95223.0,95222.0,0.27462255]
[1734995056847,0.0942653,95223.0,95222.0,0.20398632]
[1734995057047,0.0942653,95224.0,95223.0,0.310033]
[1734995057403,0.0942653,95224.0,95223.0,0.41401932]
[1734995057843,0.1398877,95224.0,95223.0,0.210033]
[1734995058084,0.0942653,95224.0,95223.0,0.210033]
[1734995058292,0.0942653,95224.0,95223.0,0.190033]
[1734995058507,0.0942653,95224.0,95223.0,0.54401932]
[1734995058724,8.56e-05,95226.0,95223.0,0.75405232]
[1734995058927,8.56e-05,95226.0,95224.0,0.10398632]
[1734995059134,8.56e-05,95226.0,95225.0,0.210028]
[1734995059350,8.56e-05,95226.0,95225.0,0.41401432]
[1734995059562,8.56e-05,95226.0,95225.0,0.210028]
[1734995062207,8.56e-05,95226.0,95225.0,0.310028]
[1734995062446,8.56e-05,95226.0,95225.0,0.68561432]
[1734995062651,8.56e-05,95226.0,95225.0,0.73361432]
[1734995063000,8.56e-05,95226.0,95225.0,0.75661432]
[1734995063218,0.01088,95230.0,95229.0,0.1]
[1734995063424,1e-06,95230.0,95229.0,0.6018429]
[1734995063639,1e-06,95230.0,95229.0,1.21051303]
[1734995063846,0.0942653,95262.0,95260.0,0.209951]
[1734995064502,0.0942653,95262.0,95261.0,0.1]
[1734995064724,8.57e-05,95265.0,95261.0,0.1]
[1734995064926,8.57e-05,95265.0,95262.0,0.209947]
[1734995065357,8.57e-05,95265.0,95263.0,0.1]
[1734995069073,8.57e-05,95265.0,95262.0,0.209947]
[1734995069496,8.57e-05,95265.0,95263.0,0.1]
[1734995069705,8.57e-05,95265.0,95263.0,0.35503604]
[1734995069915,8.57e-05,95265.0,95263.0,0.43348632]
[1734995070336,8.57e-05,95265.0,95263.0,0.35398632]
[1734995070547,8.57e-05,95265.0,95263.0,0.25]
[1734995070971,8.57e-05,95265.0,95263.0,0.42149226]
[1734995071190,8.57e-05,95265.0,95263.0,0.46949226]
[1734995071396,8.57e-05,95265.0,95263.0,0.57199226]
[1734995071858,0.0001712,95294.0,95275.0,0.209918]
[1734995072071,0.0001712,95294.0,95275.0,0.41390432]
[1734995072072,0.00032831,95276.0,95275.0,0.41390432]
[1734995073822,0.00032831,95276.0,95275.0,0.309918]
[1734995074442,0.00032831,95276.0,95275.0,0.41390432]
[1734995074647,0.00032831,95276.0,95275.0,0.1]
[1734995074860,0.00032831,95276.0,95272.0,0.1]
[1734995075075,0.00032831,95276.0,95275.0,0.1]
[1734995075303,0.00032831,95276.0,95275.0,0.20503576]
[1734995075533,0.00032831,95276.0,95275.0,0.42173464]
[1734995075785,0.00032831,95276.0,95275.0,0.6711852]
[1734995076006,0.0001712,95294.0,95293.0,0.1]
[1734995076222,0.0001712,95294.0,95293.0,0.41386532]
[1734995076436,0.0001712,95294.0,95293.0,0.45596532]
[1734995076906,0.0001712,95294.0,95293.0,0.41386532]
[1734995079220,0.0001712,95294.0,95293.0,0.309879]
[1734995080124,0.0001712,95294.0,95293.0,0.41386532]
[1734995080539,0.0001712,95294.0,95293.0,0.56386532]
[1734995080959,0.0001712,95294.0,95293.0,0.63946532]
[1734995082032,0.0001712,95294.0,95293.0,0.56386532]
[1734995082876,0.0001712,95294.0,95293.0,0.41386532]
[1734995086690,0.209879,95293.0,95290.0,0.0419]
[1734995086933,0.209879,95293.0,95281.0,0.209904]
[1734995086934,0.02896502,95292.0,95281.0,0.209904]
[1734995087146,0.419766,95291.0,95279.0,0.1]
[1734995087351,0.2100472,95294.0,95279.0,0.1]
[1734995087566,0.0001712,95294.0,95286.0,0.1]
[1734995087782,0.0001712,95294.0,95288.0,0.1]
[1734995087995,0.00797712,95293.0,95288.0,0.1]
[1734995089712,0.0001712,95294.0,95288.0,0.1]
[1734995090127,0.0001712,95294.0,95280.0,0.31389332]
[1734995090128,0.0001712,95294.0,95293.0,0.309879]
[1734995090773,0.0001712,95294.0,95293.0,0.351779]
[1734995091791,0.0001712,95294.0,95293.0,0.0419]
[1734995092037,0.0001712,95294.0,95292.0,0.1]
[1734995092241,0.0001712,95294.0,95293.0,0.0419]
[1734995093068,0.0001712,95294.0,95293.0,0.0689]
[1734995095931,0.0001712,95294.0,95293.0,0.0419]
[1734995096952,0.0001712,95294.0,95293.0,0.17288632]
[1734995097342,0.0001712,95294.0,95293.0,0.09988632]
[1734995097548,0.0001712,95294.0,95293.0,0.14188632]
[1734995098785,0.0001712,95294.0,95293.0,0.069]
[1734995101139,0.0001712,95294.0,95293.0,0.17298632]
[1734995102182,0.0001712,95294.0,95293.0,0.09998632]
[1734995102648,0.0001712,95294.0,95293.0,0.14303561]
[1734995102850,0.0001712,95294.0,95293.0,0.31603561]
[1734995103059,0.0001712,95294.0,95293.0,0.49433778]
[1734995103493,0.0001712,95294.0,95293.0,0.52644115]
[1734995103705,0.0001712,95294.0,95293.0,0.39328632]
[1734995103915,2e-07,95294.0,95293.0,1.01389847]
[1734995104127,9.1e-07,95303.0,95302.0,0.1]
[1734995104339,0.0001712,95317.0,95309.0,0.1]
[1734995104549,0.00032819,95317.0,95316.0,0.66511432]
[1734995104772,8.56e-05,95322.0,95321.0,0.209817]
[1734995104981,8.56e-05,95322.0,95321.0,0.59078964]
[1734995105191,8.56e-05,95322.0,95321.0,0.62285327]
[1734995105607,8.56e-05,95322.0,95321.0,0.59078964]
[1734995105817,8.56e-05,95322.0,95321.0,0.62282117]
[1734995106255,8.56e-05,95322.0,95321.0,0.49773548]
[1734995106676,8.56e-05,95322.0,95321.0,0.51914905]
[1734995107706,8.56e-05,95322.0,95321.0,0.88815705]
[1734995109444,8.56e-05,95322.0,95321.0,0.72822505]
[1734995109867,8.56e-05,95322.0,95321.0,0.32473548]
[1734995110094,8.56e-05,95322.0,95320.0,0.209818]
[1734995111131,8.56e-05,95322.0,95316.0,0.251828]
[1734995111307,0.082,95320.0,95316.0,0.042]
[1734995111532,0.11119026,95320.0,95316.0,0.042]
[1734995111947,0.419643,95319.0,95316.0,0.042]
[1734995112938,0.082,95320.0,95316.0,0.042]
[1734995113339,8.56e-05,95322.0,95317.0,0.209826]
[1734995113714,8.56e-05,95322.0,95319.0,0.209821]
[1734995113921,8.56e-05,95322.0,95316.0,0.042]
[1734995114142,8.56e-05,95322.0,95317.0,0.209826]
[1734995115186,8.56e-05,95322.0,95316.0,0.042]
[1734995115621,0.209819,95320.0,95316.0,0.042]
[1734995116032,8.56e-05,95322.0,95316.0,0.042]
[1734995116248,0.04205526,95322.0,95317.0,0.209826]
[1734995116466,8.56e-05,95322.0,95317.0,0.209826]
[1734995116692,8.56e-05,95322.0,95316.0,0.042]
[1734995117147,8.56e-05,95322.0,95317.0,0.209825]
[1734995117383,8.56e-05,95322.0,95317.0,0.419651]
[1734995119134,8.56e-05,95322.0,95316.0,0.042]
[1734995119352,0.02107416,95322.0,95316.0,0.042]
[1734995119572,0.02107416,95322.0,95317.0,0.209826]
[1734995119783,8.56e-05,95322.0,95317.0,0.209826]
[1734995120234,8.56e-05,95322.0,95317.0,0.419652]
[1734995120443,8.56e-05,95322.0,95318.0,0.10398632]
[1734995120659,6e-07,95322.0,95321.0,0.58680332]
[1734995120883,0.0942653,95339.0,95327.0,0.1]
[1734995121091,0.0942653,95339.0,95322.0,0.15]
[1734995121092,0.0942653,95339.0,95338.0,0.209779]
[1734995121303,0.0942653,95339.0,95338.0,0.46376532]
[1734995121522,3e-07,95339.0,95338.0,0.60856532]
[1734995121757,0.07036718,95341.0,95340.0,0.209775]
[1734995121979,0.07036718,95341.0,95340.0,0.46376132]
[1734995122192,0.209704,95373.0,95340.0,0.46376132]
[1734995122193,0.09401959,95377.0,95354.0,0.209744]
[1734995122407,0.0006087,95355.0,95354.0,0.209744]
[1734995122645,0.0006087,95355.0,95354.0,0.35563032]
[1734995123734,7e-07,95355.0,95354.0,0.75693032]
[1734995123942,0.40169459,95400.0,95371.0,0.209707]
[1734995123943,0.1885306,95398.0,95371.0,0.209707]
[1734995124150,0.0003281,95372.0,95371.0,0.46369332]
[1734995124602,0.0003281,95372.0,95371.0,0.76719332]
[1734995124603,1e-07,95372.0,95371.0,0.76719332]
[1734995124801,0.1885306,95398.0,95384.0,0.173]
[1734995125019,0.1885306,95398.0,95389.0,0.359667]
[1734995125263,0.1885306,95398.0,95389.0,0.46365332]
[1734995125476,6e-07,95390.0,95389.0,0.98665332]
[1734995125703,0.1885306,95426.0,95417.0,0.209606]
[1734995125915,0.1885306,95426.0,95417.0,0.35551392]
[1734995126118,0.00024234,95418.0,95417.0,0.39741392]
[1734995126561,0.00024234,95418.0,95417.0,0.54741392]
[1734995126976,0.00024234,95418.0,95417.0,0.50549232]
[1734995127595,3.4e-07,95418.0,95417.0,1.20142832]
[1734995127827,8.56e-05,95451.0,95435.0,0.023]
[1734995128032,8.56e-05,95451.0,95436.0,0.48655032]
[1734995128212,8.56e-05,95451.0,95436.0,0.52845032]
[1734995128569,8.56e-05,95451.0,95436.0,0.584208]
[1734995128769,8.56e-05,95451.0,95436.0,0.52845032]
[1734995129446,8.56e-05,95451.0,95436.0,0.62845032]
[1734995129581,9e-07,95437.0,95436.0,0.72845032]
[1734995130389,9e-07,95437.0,95436.0,0.62845032]
[1734995130619,9e-07,95437.0,95436.0,0.72845032]
[1734995130883,9e-07,95437.0,95436.0,0.73243664]
[1734995131121,9e-07,95437.0,95436.0,0.52845032]
[1734995131286,9e-07,95437.0,95436.0,0.48655032]
[1734995131487,9e-07,95437.0,95436.0,0.31355032]
[1734995131921,0.209564,95436.0,95417.0,0.0419]
[1734995132072,9e-07,95437.0,95417.0,0.0419]
[1734995132276,0.209568,95434.0,95418.0,0.209604]
[1734995132472,0.209568,95434.0,95417.0,0.0419]
[1734995132473,9e-07,95437.0,95420.0,0.15542621]
[1734995132683,0.00357987,95433.0,95421.0,0.10398632]
[1734995132950,0.00365502,95432.0,95421.0,0.10398632]
[1734995133352,9e-07,95437.0,95421.0,0.10398632]
[1734995133551,0.00352199,95436.0,95421.0,0.10398632]
[1734995133932,0.00352199,95436.0,95422.0,0.1656365]
[1734995134106,0.00352199,95436.0,95431.0,0.209574]
[1734995134305,9e-07,95437.0,95433.0,0.419142]
[1734995134510,9e-07,95437.0,95435.0,0.209566]
[1734995134717,9e-07,95437.0,95436.0,0.25503399]
[1734995135068,9e-07,95437.0,95436.0,0.35236082]
[1734995135691,9e-07,95437.0,95436.0,0.25398632]
[1734995136543,9e-07,95437.0,95436.0,0.10398632]
[1734995137164,9e-07,95437.0,95435.0,0.209566]
[1734995137364,9e-07,95437.0,95435.0,0.31355232]
[1734995138123,9e-07,95437.0,95435.0,0.209566]
[1734995138542,9e-07,95437.0,95433.0,0.209571]
[1734995139676,9e-07,95437.0,95433.0,0.4442891]
[1734995140094,9e-07,95437.0,95433.0,0.419142]
[1734995140743,9e-07,95437.0,95429.0,0.209579]
[1734995140950,9e-07,95437.0,95435.0,0.0001708]
[1734995141165,8.63e-05,95437.0,95435.0,0.0001708]
[1734995141793,0.00321593,95436.0,95435.0,0.0001708]
[1734995142002,0.12645755,95436.0,95435.0,0.0001708]
[1734995142189,0.12645755,95436.0,95417.0,0.251505]
[1734995142190,0.209566,95435.0,95417.0,0.1786758]
[1734995142639,0.209571,95433.0,95418.0,0.0417]
[1734995142847,0.15854057,95432.0,95418.0,0.0417]
[1734995143067,0.209595,95422.0,95418.0,0.0417]
[1734995143273,0.209599,95420.0,95418.0,0.0417]
[1734995143694,0.00308133,95419.0,95418.0,0.0417]
[1734995144768,0.10706765,95419.0,95418.0,0.0417]
[1734995146328,0.20964,95402.0,95383.0,0.00104817]
[1734995146533,0.23298632,95401.0,95382.0,0.00015684]
[1734995146737,0.209676,95385.0,95382.0,0.00015684]
[1734995147147,0.20968,95383.0,95382.0,0.00015684]
[1734995147323,0.31366632,95383.0,95382.0,0.00015684]
[1734995147553,0.31671336,95383.0,95382.0,0.00015684]
[1734995147760,0.3903189,95383.0,95382.0,0.00015684]
[1734995148677,0.4713189,95383.0,95382.0,0.00015684]
[1734995148944,0.00304704,95383.0,95382.0,0.00015684]
[1734995149437,0.081,95397.0,95382.0,0.00015684]
[1734995149668,0.00291121,95383.0,95382.0,0.00015684]
[1734995149907,0.10398632,95396.0,95382.0,0.00015684]
[1734995150167,0.00291121,95383.0,95382.0,0.00015684]
[1734995150418,0.209656,95395.0,95382.0,0.00015684]
[1734995150689,0.0031758,95383.0,95382.0,0.00015684]
[1734995150936,0.16921525,95394.0,95382.0,0.00015684]
[1734995151425,0.00314554,95393.0,95382.0,0.00015684]
[1734995151651,0.10713186,95393.0,95382.0,0.00015684]
[1734995151926,0.00314554,95393.0,95382.0,0.00015684]
[1734995152186,0.03590215,95392.0,95382.0,0.00015684]
[1734995152448,0.00314554,95393.0,95383.0,0.20968]
[1734995152707,0.00329721,95391.0,95383.0,0.20968]
[1734995152938,0.081,95397.0,95383.0,0.20968]
[1734995153423,0.081,95397.0,95368.0,0.0421]
[1734995153424,0.00329854,95396.0,95368.0,0.0421]
[1734995153669,0.00345523,95396.0,95369.0,0.13790727]
[1734995153920,0.00015669,95396.0,95372.0,0.209705]
[1734995154173,0.00015669,95396.0,95391.0,0.419325]
[1734995154660,0.00015669,95396.0,95393.0,0.419316]
[1734995156390,0.00015669,95396.0,95393.0,0.209658]
[1734995156657,0.00015669,95396.0,95393.0,0.419316]
[1734995157442,0.00015669,95396.0,95395.0,0.209654]
[1734995157693,0.00015669,95396.0,95395.0,0.31364032]
[1734995158379,0.00015669,95396.0,95395.0,0.209654]
[1734995162507,0.00015669,95396.0,95395.0,0.31364032]
[1734995164068,0.00015669,95396.0,95395.0,0.209654]
[1734995164273,0.00015669,95396.0,95389.0,0.209666]
[1734995164274,0.00015669,95396.0,95389.0,0.209667]
[1734995164501,0.00015669,95396.0,95369.0,0.209709]
[1734995164712,0.00015669,95396.0,95393.0,0.042]
[1734995164713,0.03316957,95395.0,95393.0,0.042]
[1734995164944,0.04231598,95395.0,95393.0,0.042]
[1734995165163,0.31364232,95394.0,95393.0,0.042]
[1734995165385,0.43664232,95394.0,95393.0,0.042]
[1734995165589,0.52134469,95394.0,95393.0,0.042]
[1734995165774,0.61240698,95394.0,95393.0,0.042]
[1734995165975,0.48940698,95394.0,95393.0,0.042]